[Event "Mistrovství Čech mládeže 2023 - HD12"]
[Site "Harrachov, Czech Republic"]
[Date "2023.10.25"]
[Round "6.15"]
[White "Slonek, Richard"]
[Black "Havlík, David"]
[Result "0-1"]
[TimeControl "90m + 30s"]
[WhiteElo "1128"]
[BlackElo "1331"]

1. e4 {[%clk 01:30:56]} {[%emt 00:00:04]} e5 {[%clk 01:30:56]} {[%emt
00:00:04]} 2. Nf3 {[%clk 01:31:19]} {[%emt 00:00:06]} Nc6 {[%clk 01:31:23]}
{[%emt 00:00:03]} 3. Bc4 {[%clk 01:31:41]} {[%emt 00:00:09]} Bc5 {[%clk
01:31:50]} {[%emt 00:00:03]} 4. d3 {[%clk 01:32:01]} {[%emt 00:00:10]} Nf6
{[%clk 01:32:16]} {[%emt 00:00:04]} 5. c3 {[%clk 01:32:22]} {[%emt 00:00:10]}
d6 {[%clk 01:32:32]} {[%emt 00:00:13]} 6. Nbd2 {[%clk 01:32:36]} {[%emt
00:00:16]} Be6 {[%clk 01:32:02]} {[%emt 00:00:59]} 7. Bb3 {[%clk 01:32:54]}
{[%emt 00:00:13]} Bxb3 {[%clk 01:32:14]} {[%emt 00:00:17]} 8. Qxb3 {[%clk
01:32:58]} {[%emt 00:00:26]} Bb6 {[%clk 01:32:08]} {[%emt 00:00:36]} 9. Nf1
{[%clk 01:32:34]} {[%emt 00:00:54]} Ng4 {[%clk 01:29:51]} {[%emt 00:02:47]} 10.
Be3 {[%clk 01:31:32]} {[%emt 00:01:33]} Nxe3 {[%clk 01:29:29]} {[%emt
00:00:52]} 11. fxe3 {[%clk 01:31:50]} {[%emt 00:00:12]} O-O {[%clk 01:29:34]}
{[%emt 00:00:25]} 12. h3 {[%clk 01:31:49]} {[%emt 00:00:31]} Qf6 {[%clk
01:29:05]} {[%emt 00:00:58]} 13. O-O-O {[%clk 01:31:28]} {[%emt 00:00:51]} a5
{[%clk 01:29:02]} {[%emt 00:00:33]} 14. Qc2 {[%clk 01:30:23]} {[%emt 00:01:36]}
a4 {[%clk 01:28:48]} {[%emt 00:00:43]} 15. Qf2 {[%clk 01:30:17]} {[%emt
00:00:35]} a3 {[%clk 01:27:31]} {[%emt 00:01:49]} 16. b3 {[%clk 01:30:30]}
{[%emt 00:00:17]} Ba5 {[%clk 01:18:02]} {[%emt 00:09:58]} 17. Kc2 {[%clk
01:30:22]} {[%emt 00:00:38]} Ra6 {[%clk 01:11:14]} {[%emt 00:07:19]} 18. g4
{[%clk 01:29:37]} {[%emt 00:01:15]} Na7 {[%clk 01:07:02]} {[%emt 00:04:42]} 19.
g5 {[%clk 01:29:49]} {[%emt 00:00:17]} Qe6 {[%clk 01:07:00]} {[%emt 00:00:28]}
20. Ng3 {[%clk 01:28:06]} {[%emt 00:02:18]} Rc6 {[%clk 01:06:15]} {[%emt
00:01:15]} 21. c4 {[%clk 01:27:37]} {[%emt 00:00:59]} Rb8 {[%clk 01:05:08]}
{[%emt 00:01:36]} 22. h4 {[%clk 01:26:48]} {[%emt 00:01:19]} b5 {[%clk
01:05:05]} {[%emt 00:00:34]} 23. h5 {[%clk 01:26:42]} {[%emt 00:00:36]} bxc4
{[%clk 01:05:17]} {[%emt 00:00:17]} 24. dxc4 {[%clk 01:27:03]} {[%emt
00:00:10]} Rxc4+ {[%clk 01:05:25]} {[%emt 00:00:22]} 25. Kb1 {[%clk 01:26:45]}
{[%emt 00:00:48]} Rc3 {[%clk 00:59:57]} {[%emt 00:05:58]} 26. Nh4 {[%clk
01:24:46]} {[%emt 00:02:28]} Rcxb3+ {[%clk 00:58:58]} {[%emt 00:01:29]} 27.
axb3 {[%clk 01:24:47]} {[%emt 00:00:30]} Rxb3+ {[%clk 00:58:42]} {[%emt
00:00:47]} 28. Kc1 {[%clk 01:23:02]} {[%emt 00:02:13]} Qc4+ {[%clk 00:58:40]}
{[%emt 00:00:33]} 29. Qc2 {[%clk 01:23:18]} {[%emt 00:00:15]} Rc3 {[%clk
00:58:54]} {[%emt 00:00:15]} 30. Qxc3 {[%clk 01:22:56]} {[%emt 00:00:50]} Qxc3+
{[%clk 00:59:20]} {[%emt 00:00:06]} 31. Kb1 {[%clk 01:22:58]} {[%emt 00:00:28]}
Qb2# {[%clk 00:59:41]} {[%emt 00:00:09]} 0-1

[Event "Mistrovství Čech mládeže 2023 - HD12"]
[Site "Harrachov, Czech Republic"]
[Date "2023.10.25"]
[Round "6.16"]
[White "Vlček, Vítězslav"]
[Black "Kůsová, Nikola"]
[Result "1/2-1/2"]
[TimeControl "90m + 30s"]
[WhiteElo "1120"]
[BlackElo "1324"]

1. d4 {[%clk 01:30:51]} {[%emt 00:00:08]} d5 {[%clk 01:30:50]} {[%emt
00:00:10]} 2. c4 {[%clk 01:31:02]} {[%emt 00:00:20]} e6 {[%clk 01:31:11]}
{[%emt 00:00:08]} 3. Nc3 {[%clk 01:31:02]} {[%emt 00:00:31]} c5 {[%clk
01:31:32]} {[%emt 00:00:09]} 4. Nf3 {[%clk 01:30:19]} {[%emt 00:01:13]} Nc6
{[%clk 01:31:20]} {[%emt 00:00:42]} 5. e3 {[%clk 01:29:36]} {[%emt 00:01:13]}
Nf6 {[%clk 01:31:39]} {[%emt 00:00:11]} 6. Bd3 {[%clk 01:29:16]} {[%emt
00:00:50]} a6 {[%clk 01:31:31]} {[%emt 00:00:37]} 7. O-O {[%clk 01:25:02]}
{[%emt 00:04:44]} dxc4 {[%clk 01:31:00]} {[%emt 00:01:02]} 8. Bxc4 {[%clk
01:25:06]} {[%emt 00:00:26]} b5 {[%clk 01:31:16]} {[%emt 00:00:15]} 9. Be2
{[%clk 01:23:11]} {[%emt 00:02:23]} Bb7 {[%clk 01:28:29]} {[%emt 00:03:16]} 10.
a3 {[%clk 01:18:00]} {[%emt 00:05:43]} Be7 {[%clk 01:24:14]} {[%emt 00:04:45]}
11. dxc5 {[%clk 01:16:35]} {[%emt 00:01:55]} Bxc5 {[%clk 01:24:29]} {[%emt
00:00:15]} 12. b4 {[%clk 01:16:41]} {[%emt 00:00:25]} Be7 {[%clk 01:23:01]}
{[%emt 00:01:57]} 13. Bb2 {[%clk 01:15:08]} {[%emt 00:02:03]} O-O {[%clk
01:22:36]} {[%emt 00:00:55]} 14. Rc1 {[%clk 01:12:27]} {[%emt 00:03:11]} Rc8
{[%clk 01:16:05]} {[%emt 00:07:01]} 15. h3 {[%clk 01:05:13]} {[%emt 00:07:43]}
Qxd1 {[%clk 01:12:39]} {[%emt 00:03:57]} 16. Rfxd1 {[%clk 01:05:28]} {[%emt
00:00:15]} Rfd8 {[%clk 01:12:55]} {[%emt 00:00:14]} 17. Kf1 {[%clk 01:03:31]}
{[%emt 00:02:27]} Kf8 {[%clk 01:11:59]} {[%emt 00:01:26]} 18. Ke1 {[%clk
01:00:00]} {[%emt 00:04:00]} Ke8 {[%clk 01:09:37]} {[%emt 00:02:53]} 19. Rxd8+
{[%clk 00:53:12]} Rxd8 {[%clk 01:09:50]} {[%emt 00:07:35]} 20. Rd1 {[%clk
00:52:55]} {[%emt 00:00:47]} h6 {[%clk 01:06:54]} {[%emt 00:03:26]} 21. Rxd8+
{[%clk 00:52:10]} {[%emt 00:01:15]} Kxd8 {[%clk 01:05:19]} {[%emt 00:02:05]} 22.
Kd2 {[%clk 00:50:06]} {[%emt 00:02:33]} Kd7 {[%clk 01:05:19]} {[%emt 00:00:31]}
23. Kd3 {[%clk 00:47:25]} {[%emt 00:03:10]} Kd6 {[%clk 01:03:22]} {[%emt
00:02:27]} 24. e4 {[%clk 00:37:02]} {[%emt 00:10:53]} 1/2-1/2

[Event "Mistrovství Čech mládeže 2023 - HD12"]
[Site "Harrachov, Czech Republic"]
[Date "2023.10.25"]
[Round "6.17"]
[White "Šára, David"]
[Black "Sehnoutka, Vít"]
[Result "1-0"]
[TimeControl "90m + 30s"]
[WhiteElo "1320"]
[BlackElo "1041"]

1. e4 {[%clk 01:30:58]} {[%emt 00:00:01]} c5 {[%clk 01:30:39]} {[%emt
00:00:21]} 2. d4 {[%clk 01:31:24]} {[%emt 00:00:05]} cxd4 {[%clk 01:30:57]}
{[%emt 00:00:11]} 3. c3 {[%emt 00:05:36]} d3 {[%clk 01:25:51]} {[%emt
00:00:04]} 4. Bxd3 {[%clk 01:31:51]} {[%emt 00:00:29]} d6 {[%clk 01:25:06]}
{[%emt 00:01:15]} 5. Nf3 {[%clk 01:32:14]} {[%emt 00:00:07]} Bg4 {[%clk
01:24:32]} {[%emt 00:01:04]} 6. Bc4 {[%clk 01:32:19]} {[%emt 00:00:23]} e5
{[%clk 01:24:29]} {[%emt 00:00:35]} 7. Qd5 {[%clk 01:29:59]} {[%emt 00:02:45]}
Be6 {[%clk 01:19:54]} {[%emt 00:05:10]} 8. Qxb7 {[%clk 01:28:25]} {[%emt
00:02:02]} Nd7 {[%clk 01:18:22]} {[%emt 00:02:05]} 9. Bd3 {[%clk 01:26:29]}
{[%emt 00:02:20]} Ngf6 {[%clk 01:17:42]} {[%emt 00:01:16]} 10. Be3 {[%emt
00:04:27]} d5 {[%clk 01:04:54]} {[%emt 00:09:58]} 11. Ng5 {[%clk 01:23:15]}
{[%emt 00:03:03]} dxe4 {[%clk 01:00:25]} {[%emt 00:05:03]} 12. Nxe6 {[%clk
01:23:07]} {[%emt 00:00:37]} fxe6 {[%clk 00:59:57]} {[%emt 00:00:58]} 13. Bxe4
{[%clk 01:23:17]} {[%emt 00:00:20]} Rb8 {[%clk 00:57:53]} {[%emt 00:02:23]} 14.
Qc6 {[%clk 01:22:25]} {[%emt 00:01:31]} Rc8 {[%clk 00:53:47]} {[%emt 00:04:40]}
15. Qxe6+ {[%clk 01:21:45]} {[%emt 00:01:09]} Be7 {[%clk 00:53:13]} {[%emt
00:01:02]} 16. Bc2 {[%clk 01:16:29]} {[%emt 00:05:46]} Nc5 {[%clk 00:48:36]}
{[%emt 00:05:03]} 17. Qxe5 {[%clk 01:09:21]} {[%emt 00:07:43]} O-O {[%clk
00:44:55]} {[%emt 00:04:11]} 18. O-O {[%clk 01:06:51]} {[%emt 00:03:00]} Ng4
{[%clk 00:43:16]} {[%emt 00:02:09]} 19. Qh5 {[%clk 01:06:29]} {[%emt 00:00:47]}
Nf6 {[%clk 00:42:26]} {[%emt 00:01:25]} 20. Qh3 {[%clk 01:06:19]} {[%emt
00:00:35]} Qd5 {[%clk 00:34:59]} {[%emt 00:08:02]} 21. b4 {[%clk 01:05:10]}
{[%emt 00:01:37]} Ne6 {[%clk 00:31:13]} {[%emt 00:04:17]} 22. Bb3 {[%clk
01:05:21]} {[%emt 00:00:14]} 1-0

[Event "Mistrovství Čech mládeže 2023 - HD12"]
[Site "Harrachov, Czech Republic"]
[Date "2023.10.25"]
[Round "6.22"]
[White "Ličková, Anna"]
[Black "Vrátný, Vojtěch"]
[Result "1-0"]
[TimeControl "90m + 30s"]
[WhiteElo "1366"]
[BlackElo "1210"]

1. e4 {[%clk 01:30:58]} {[%emt 00:00:02]} Nf6 {[%clk 01:30:54]} {[%emt
00:00:06]} 2. e5 {[%clk 01:31:17]} {[%emt 00:00:11]} Nd5 {[%clk 01:31:15]}
{[%emt 00:00:08]} 3. d4 {[%clk 01:30:20]} {[%emt 00:01:27]} d6 {[%clk
01:31:23]} {[%emt 00:00:22]} 4. c4 {[%clk 01:28:41]} {[%emt 00:02:09]} Nb6
{[%clk 01:31:03]} {[%emt 00:00:50]} 5. exd6 {[%clk 01:28:03]} {[%emt 00:01:09]}
cxd6 {[%clk 01:31:16]} {[%emt 00:00:16]} 6. Nf3 {[%clk 01:27:24]} {[%emt
00:01:09]} g6 {[%clk 01:31:00]} {[%emt 00:00:46]} 7. Be2 {[%clk 01:24:56]}
{[%emt 00:02:59]} Bg7 {[%clk 01:31:10]} {[%emt 00:00:18]} 8. O-O {[%clk
01:22:44]} {[%emt 00:02:43]} O-O {[%clk 01:31:23]} {[%emt 00:00:17]} 9. b3
{[%clk 01:22:22]} {[%emt 00:00:52]} Bg4 {[%clk 01:30:15]} {[%emt 00:01:38]} 10.
Bb2 {[%emt 00:05:45]} Nc6 {[%clk 01:28:20]} {[%emt 00:00:04]} 11. Nbd2 {[%clk
01:14:12]} {[%emt 00:05:47]} a5 {[%clk 01:28:00]} {[%emt 00:00:49]} 12. h3
{[%clk 01:10:38]} {[%emt 00:04:04]} Bxf3 {[%clk 01:27:41]} {[%emt 00:00:49]} 13.
Nxf3 {[%clk 01:10:54]} {[%emt 00:00:15]} a4 {[%clk 01:27:42]} {[%emt 00:00:28]}
14. Qd2 {[%clk 01:00:59]} {[%emt 00:10:23]} axb3 {[%clk 01:26:37]} {[%emt
00:01:38]} 15. axb3 {[%clk 01:01:24]} {[%emt 00:00:05]} Qb8 {[%clk 01:24:32]}
{[%emt 00:02:32]} 16. Rfe1 {[%clk 00:44:18]} {[%emt 00:17:39]} Re8 {[%clk
01:22:37]} {[%emt 00:02:23]} 17. Bf1 {[%clk 00:37:51]} {[%emt 00:06:58]} e5
{[%clk 01:21:03]} {[%emt 00:02:05]} 18. Rxa8 {[%clk 00:36:48]} {[%emt
00:01:32]} Nxa8 {[%clk 01:21:16]} {[%emt 00:00:17]} 19. dxe5 {[%clk 00:35:12]}
{[%emt 00:02:07]} dxe5 {[%clk 01:21:25]} {[%emt 00:00:20]} 20. c5 {[%clk
00:29:18]} {[%emt 00:06:24]} Nc7 {[%clk 01:18:06]} {[%emt 00:03:47]} 21. Bc3
{[%clk 00:19:39]} {[%emt 00:10:11]} Ne6 {[%clk 01:17:47]} {[%emt 00:00:50]} 22.
b4 {[%clk 00:16:12]} {[%emt 00:03:57]} Rd8 {[%clk 01:17:23]} {[%emt 00:00:53]}
23. Qb2 {[%clk 00:14:54]} {[%emt 00:01:48]} Ned4 {[%clk 01:17:21]} {[%emt
00:00:32]} 24. Bxd4 {[%clk 00:12:51]} {[%emt 00:02:33]} Nxd4 {[%clk 01:17:21]}
{[%emt 00:00:30]} 25. Nxd4 {[%clk 00:13:01]} {[%emt 00:00:19]} exd4 {[%clk
01:17:43]} {[%emt 00:00:09]} 26. Bd3 {[%clk 00:13:16]} {[%emt 00:00:16]} b6
{[%clk 01:17:14]} {[%emt 00:00:59]} 27. c6 {[%clk 00:10:53]} {[%emt 00:02:53]}
Qc7 {[%clk 01:16:45]} {[%emt 00:00:53]} 28. b5 {[%clk 00:10:53]} {[%emt
00:00:35]} Qf4 {[%clk 01:16:02]} {[%emt 00:01:12]} 29. Re4 {[%clk 00:09:11]}
{[%emt 00:02:08]} Qd6 {[%clk 01:15:39]} {[%emt 00:00:57]} 30. Qc2 {[%clk
00:08:04]} {[%emt 00:01:36]} Qc5 {[%clk 01:14:40]} {[%emt 00:01:31]} 31. Qxc5
{[%clk 00:07:26]} {[%emt 00:01:08]} bxc5 {[%clk 01:15:04]} {[%emt 00:00:05]} 32.
c7 {[%clk 00:07:55]} {[%emt 00:00:03]} 1-0

[Event "Mistrovství Čech mládeže 2023 - HD12"]
[Site "Harrachov, Czech Republic"]
[Date "2023.10.26"]
[Round "7.1"]
[White "Zrůst, Lukáš"]
[Black "Artamonov, Mikhail"]
[Result "0-1"]
[TimeControl "90m + 30s"]
[WhiteElo "1685"]
[BlackElo "1458"]

1. e4 {[%clk 01:30:45]} {[%emt 00:00:15]} c5 {[%clk 01:27:27]} {[%emt
00:03:35]} 2. Nf3 {[%clk 01:30:53]} {[%emt 00:00:20]} Nc6 {[%clk 01:27:46]}
{[%emt 00:00:12]} 3. d4 {[%clk 01:31:14]} {[%emt 00:00:09]} cxd4 {[%clk
01:27:09]} {[%emt 00:01:07]} 4. Nxd4 {[%clk 01:31:40]} {[%emt 00:00:02]} e6
{[%clk 01:24:35]} {[%emt 00:03:05]} 5. Nc3 {[%clk 01:31:47]} {[%emt 00:00:23]}
Nge7 {[%clk 01:20:32]} {[%emt 00:04:33]} 6. Be3 {[%clk 01:29:59]} {[%emt
00:02:17]} Nxd4 {[%clk 01:18:50]} {[%emt 00:02:14]} 7. Bxd4 {[%clk 01:29:04]}
{[%emt 00:01:25]} Nc6 {[%clk 01:17:32]} {[%emt 00:01:48]} 8. Be3 {[%clk
01:28:39]} {[%emt 00:00:54]} Bb4 {[%clk 01:15:48]} {[%emt 00:02:15]} 9. a3
{[%clk 01:26:23]} {[%emt 00:02:46]} Ba5 {[%clk 01:15:47]} {[%emt 00:00:31]} 10.
Bc5 {[%clk 01:24:22]} {[%emt 00:02:30]} Bxc3+ {[%clk 01:07:34]} {[%emt
00:08:44]} 11. bxc3 {[%clk 01:24:24]} {[%emt 00:00:27]} Qa5 {[%clk 01:06:43]}
{[%emt 00:01:22]} 12. Bb4 {[%clk 01:23:15]} {[%emt 00:01:38]} Qe5 {[%clk
01:04:36]} {[%emt 00:02:38]} 13. Qd3 {[%clk 01:08:15]} {[%emt 00:15:30]} d5
{[%clk 01:01:12]} {[%emt 00:03:55]} 14. f3 {[%clk 01:02:00]} {[%emt 00:06:44]}
a5 {[%clk 01:01:08]} {[%emt 00:00:33]} 15. f4 {[%clk 00:55:28]} {[%emt
00:07:02]} Qxf4 {[%clk 00:54:55]} {[%emt 00:06:44]} 16. exd5 {[%clk 00:52:05]}
{[%emt 00:03:52]} axb4 {[%clk 00:43:04]} {[%emt 00:12:22]} 17. dxc6 {[%clk
00:52:06]} {[%emt 00:00:29]} bxc6 {[%clk 00:43:16]} {[%emt 00:00:18]} 18. a4
{[%clk 00:46:17]} {[%emt 00:06:20]} Qe5+ {[%clk 00:38:51]} {[%emt 00:04:54]} 19.
Be2 {[%clk 00:45:08]} {[%emt 00:01:39]} Ba6 {[%clk 00:37:00]} {[%emt 00:02:21]}
20. Qf3 {[%clk 00:43:19]} {[%emt 00:02:18]} Bxe2 {[%clk 00:36:02]} {[%emt
00:01:28]} 21. Qxe2 {[%clk 00:43:15]} {[%emt 00:00:34]} Qxc3+ {[%clk 00:36:22]}
{[%emt 00:00:11]} 22. Kf2 {[%clk 00:43:31]} {[%emt 00:00:13]} Ra5 {[%clk
00:33:54]} {[%emt 00:02:58]} 23. Rhd1 {[%clk 00:41:32]} {[%emt 00:02:28]} O-O
{[%clk 00:29:01]} {[%emt 00:05:23]} 24. Kg1 {[%clk 00:39:59]} {[%emt 00:02:00]}
Rfa8 {[%clk 00:26:41]} {[%emt 00:02:54]} 25. Qe4 {[%clk 00:36:38]} {[%emt
00:03:48]} Re5 {[%clk 00:23:16]} {[%emt 00:03:59]} 26. Qh4 {[%clk 00:34:16]}
{[%emt 00:02:49]} g5 {[%clk 00:20:47]} {[%emt 00:03:02]} 27. Qf2 {[%clk
00:30:12]} {[%emt 00:04:34]} Rf5 {[%clk 00:19:44]} {[%emt 00:01:33]} 28. Qe2
{[%clk 00:29:11]} {[%emt 00:01:31]} Qc5+ {[%clk 00:19:41]} {[%emt 00:00:33]} 29.
Kh1 {[%clk 00:29:25]} {[%emt 00:00:15]} Rf2 {[%clk 00:19:22]} {[%emt 00:00:50]}
30. Qg4 {[%clk 00:25:32]} {[%emt 00:04:22]} Rxc2 {[%clk 00:16:21]} {[%emt
00:03:32]} 31. h4 {[%clk 00:25:16]} {[%emt 00:00:45]} Rc4 {[%clk 00:16:19]}
{[%emt 00:00:33]} 32. Qxg5+ {[%clk 00:25:21]} {[%emt 00:00:25]} Qxg5 {[%clk
00:16:43]} {[%emt 00:00:05]} 33. hxg5 {[%clk 00:25:36]} {[%emt 00:00:15]} Ra5
{[%clk 00:15:49]} {[%emt 00:01:24]} 34. Rdb1 {[%clk 00:23:47]} {[%emt
00:02:19]} Rg4 {[%clk 00:12:55]} {[%emt 00:03:24]} 35. Kg1 {[%clk 00:20:42]}
{[%emt 00:03:35]} Rf4 {[%clk 00:12:47]} {[%emt 00:00:38]} 36. g3 {[%clk
00:20:14]} {[%emt 00:00:58]} Re4 {[%clk 00:12:01]} {[%emt 00:01:16]} 37. Kf2
{[%clk 00:20:26]} {[%emt 00:00:18]} c5 {[%clk 00:12:21]} {[%emt 00:00:10]} 38.
Rb3 {[%clk 00:20:04]} {[%emt 00:00:51]} Rd4 {[%clk 00:10:56]} {[%emt 00:01:56]}
39. Ke2 {[%clk 00:18:00]} {[%emt 00:02:33]} Rd8 {[%clk 00:10:47]} {[%emt
00:00:40]} 40. Rc1 {[%clk 00:16:27]} {[%emt 00:02:03]} Rd5 {[%clk 00:08:51]}
{[%emt 00:02:26]} 41. Ra1 {[%clk 00:16:22]} {[%emt 00:00:35]} Rxg5 {[%clk
00:07:57]} {[%emt 00:01:24]} 42. Kd2 {[%clk 00:15:32]} {[%emt 00:01:21]} Rd5+
{[%clk 00:07:08]} {[%emt 00:01:19]} 43. Ke3 {[%clk 00:15:39]} {[%emt 00:00:22]}
h5 {[%clk 00:06:28]} {[%emt 00:01:10]} 44. Kf3 {[%clk 00:15:47]} {[%emt
00:00:22]} Kf8 {[%clk 00:05:49]} {[%emt 00:01:10]} 45. Ke4 {[%clk 00:14:24]}
{[%emt 00:01:52]} Ke7 {[%clk 00:04:38]} {[%emt 00:01:42]} 46. Ra2 {[%clk
00:13:29]} {[%emt 00:01:24]} Rd7 {[%clk 00:04:00]} {[%emt 00:01:08]} 47. Rb1
{[%clk 00:07:00]} {[%emt 00:06:59]} Rda7 {[%clk 00:04:17]} {[%emt 00:00:13]} 48.
Rc2 {[%clk 00:07:01]} {[%emt 00:00:30]} Kd6 {[%clk 00:03:35]} {[%emt 00:01:12]}
49. Rd1+ {[%clk 00:06:41]} {[%emt 00:00:50]} Kc6 {[%clk 00:03:42]} {[%emt
00:00:23]} 50. Rh1 {[%clk 00:06:10]} {[%emt 00:01:00]} Rxa4 {[%clk 00:04:01]}
{[%emt 00:00:11]} 51. Kd3 {[%clk 00:06:22]} {[%emt 00:00:18]} Ra3+ {[%clk
00:03:50]} {[%emt 00:00:41]} 52. Ke4 {[%clk 00:05:55]} {[%emt 00:00:58]} Rxg3
{[%clk 00:03:24]} {[%emt 00:00:56]} 53. Rxh5 {[%clk 00:06:15]} {[%emt
00:00:09]} f5+ {[%clk 00:03:16]} {[%emt 00:00:38]} 54. Ke5 {[%clk 00:06:25]}
{[%emt 00:00:21]} b3 {[%clk 00:03:13]} {[%emt 00:00:33]} 55. Rd2 {[%clk
00:06:40]} {[%emt 00:00:13]} Re3+ {[%clk 00:03:23]} {[%emt 00:00:21]} 56. Kf4
{[%clk 00:07:07]} {[%emt 00:00:04]} Re4+ {[%clk 00:03:34]} {[%emt 00:00:19]} 57.
Kf3 {[%clk 00:07:35]} {[%emt 00:00:01]} Ra2 {[%clk 00:03:30]} {[%emt 00:00:35]}
58. Rd1 {[%clk 00:07:44]} {[%emt 00:00:20]} b2 {[%clk 00:03:02]} {[%emt
00:00:58]} 59. Rb1 {[%clk 00:08:13]} Rb4 {[%clk 00:03:03]} {[%emt 00:00:29]} 60.
Rh2 {[%clk 00:08:39]} {[%emt 00:00:04]} Ra3+ {[%clk 00:03:10]} {[%emt
00:00:24]} 0-1